[Event "19th Rochefort Chess Festival - Masters"]
[Site "Rochefort, France"]
[Date "2020.02.23"]
[Round "3.3"]
[White "Burmakin, Vladimir"]
[Black "Ivanov, Mikhail M"]
[Result "1-0"]
[TimeControl "1h30/40 - 30' + [30'']"]
[WhiteElo "2514"]
[BlackElo "2353"]

1. Nf3 {[%clk 01:30:57]} {[%emt 00:00:02]} d5 {[%clk 01:23:16]} {[%emt
00:07:44]} 2. g3 {[%clk 01:30:54]} {[%emt 00:00:33]} Bg4 {[%clk 01:22:01]}
{[%emt 00:01:45]} 3. Bg2 {[%clk 01:31:13]} {[%emt 00:00:11]} Nd7 {[%clk
01:22:25]} {[%emt 00:00:06]} 4. h3 {[%clk 01:28:26]} {[%emt 00:03:17]} Bh5
{[%clk 01:21:52]} {[%emt 00:01:03]} 5. c4 {[%clk 01:21:59]} {[%emt 00:06:57]}
e6 {[%clk 01:21:32]} {[%emt 00:00:49]} 6. Qb3 {[%clk 01:13:48]} {[%emt
00:08:41]} Nc5 {[%clk 01:20:50]} {[%emt 00:01:12]} 7. Qc2 {[%clk 01:14:13]}
{[%emt 00:00:04]} c6 {[%clk 01:18:23]} {[%emt 00:02:57]} 8. d3 {[%clk
01:14:27]} {[%emt 00:00:16]} Nf6 {[%clk 01:17:06]} {[%emt 00:01:46]} 9. O-O
{[%clk 01:13:02]} {[%emt 00:01:55]} a5 {[%clk 01:17:06]} {[%emt 00:00:31]} 10.
Be3 {[%clk 01:10:20]} {[%emt 00:03:12]} Ncd7 {[%clk 01:09:29]} {[%emt
00:08:07]} 11. cxd5 {[%clk 01:08:15]} {[%emt 00:02:36]} exd5 {[%clk 01:08:37]}
{[%emt 00:01:22]} 12. Qb3 {[%clk 01:03:07]} {[%emt 00:05:38]} Qc8 {[%clk
01:06:36]} {[%emt 00:02:29]} 13. Nc3 {[%clk 00:57:42]} {[%emt 00:05:55]} Bxf3
{[%clk 01:01:25]} {[%emt 00:05:41]} 14. Bxf3 {[%clk 00:57:15]} {[%emt
00:00:58]} Bd6 {[%clk 01:01:50]} {[%emt 00:00:04]} 15. Rac1 {[%clk 00:55:09]}
{[%emt 00:02:37]} Qb8 {[%clk 01:01:48]} {[%emt 00:00:32]} 16. Bd4 {[%clk
00:53:01]} {[%emt 00:02:38]} O-O {[%clk 01:00:19]} {[%emt 00:01:59]} 17. e4
{[%clk 00:53:24]} {[%emt 00:00:07]} Be5 {[%clk 00:57:02]} {[%emt 00:03:47]} 18.
Bxe5 {[%clk 00:51:54]} {[%emt 00:02:00]} Nxe5 {[%clk 00:57:09]} {[%emt
00:00:23]} 19. Be2 {[%clk 00:52:20]} {[%emt 00:00:04]} dxe4 {[%clk 00:52:13]}
{[%emt 00:05:26]} 20. dxe4 {[%clk 00:52:27]} {[%emt 00:00:23]} Qa7 {[%clk
00:52:06]} {[%emt 00:00:36]} 21. Kg2 {[%clk 00:51:41]} {[%emt 00:01:16]} a4
{[%clk 00:43:10]} {[%emt 00:09:27]} 22. Qc2 {[%clk 00:51:40]} {[%emt 00:00:31]}
Ned7 {[%clk 00:43:00]} {[%emt 00:00:40]} 23. f4 {[%clk 00:48:23]} {[%emt
00:03:48]} Nb6 {[%clk 00:43:23]} {[%emt 00:00:07]} 24. Rfd1 {[%clk 00:46:08]}
{[%emt 00:02:44]} Rfe8 {[%clk 00:38:02]} {[%emt 00:05:51]} 25. Rd2 {[%clk
00:36:17]} {[%emt 00:10:22]} Re7 {[%clk 00:23:44]} {[%emt 00:14:47]} 26. Rcd1
{[%clk 00:36:44]} {[%emt 00:00:03]} Rae8 {[%clk 00:24:06]} {[%emt 00:00:09]} 27.
Rd8 {[%clk 00:36:43]} {[%emt 00:00:31]} Qa5 {[%clk 00:23:10]} {[%emt 00:01:26]}
28. R1d4 {[%clk 00:33:57]} {[%emt 00:03:16]} g6 {[%clk 00:13:17]} {[%emt
00:10:24]} 29. Rxe8+ {[%clk 00:28:26]} {[%emt 00:06:01]} Rxe8 {[%clk 00:13:42]}
{[%emt 00:00:05]} 30. Bf3 {[%clk 00:24:26]} {[%emt 00:04:29]} a3 {[%clk
00:09:17]} {[%emt 00:04:55]} 31. b4 {[%clk 00:19:29]} {[%emt 00:05:27]} Qa7
{[%clk 00:09:25]} {[%emt 00:00:22]} 32. Qd3 {[%clk 00:12:56]} {[%emt 00:07:03]}
Na4 {[%clk 00:06:02]} {[%emt 00:03:52]} 33. e5 {[%clk 00:09:10]} {[%emt
00:04:17]} Nxc3 {[%clk 00:04:20]} {[%emt 00:02:12]} 34. Qxc3 {[%clk 00:09:24]}
{[%emt 00:00:15]} Nd5 {[%clk 00:04:29]} {[%emt 00:00:20]} 35. Bxd5 {[%clk
00:09:47]} {[%emt 00:00:08]} cxd5 {[%clk 00:04:55]} {[%emt 00:00:04]} 36. Rxd5
{[%clk 00:10:11]} {[%emt 00:00:06]} b6 {[%clk 00:04:07]} {[%emt 00:01:18]} 37.
Qc6 {[%clk 00:09:29]} {[%emt 00:01:11]} Qb8 {[%clk 00:04:30]} {[%emt 00:00:08]}
38. Rd7 {[%clk 00:09:18]} {[%emt 00:00:41]} Qc8 {[%clk 00:01:56]} {[%emt
00:03:04]} 39. b5 {[%clk 00:09:22]} {[%emt 00:00:26]} Qa8 {[%clk 00:01:18]}
{[%emt 00:01:08]} 40. Kf3 {[%clk 00:04:30]} {[%emt 00:05:21]} Qa5 {[%clk
00:00:53]} {[%emt 00:00:55]} 41. Qc4 {[%clk 00:04:22]} {[%emt 00:00:38]} Re6
{[%clk 00:00:42]} {[%emt 00:00:41]} 42. Rd8+ {[%clk 00:03:25]} {[%emt
00:01:27]} Kg7 {[%clk 00:01:06]} {[%emt 00:00:06]} 43. Qc8 {[%clk 00:03:27]}
{[%emt 00:00:29]} Kh6 {[%clk 00:25:54]} {[%emt 00:05:42]} 44. Rg8 {[%clk
00:33:39]} {[%emt 00:00:18]} Qb4 {[%clk 00:26:13]} {[%emt 00:00:12]} 45. Qf8+
{[%clk 00:34:03]} {[%emt 00:00:05]} Qxf8 {[%clk 00:26:38]} {[%emt 00:00:05]} 46.
Rxf8 {[%clk 00:34:30]} {[%emt 00:00:03]} Re7 {[%clk 00:26:06]} {[%emt
00:01:01]} 47. Ra8 {[%clk 00:34:54]} {[%emt 00:00:06]} 1-0




[ePGN "0.1;DGT LiveChess/2.2.5"]

[Event "19th Rochefort Chess Festival - Masters"]
[Site "Rochefort, France"]
[Date "2020.02.24"]
[Round "4.1"]
[White "Gareyev, Timur"]
[Black "Burmakin, Vladimir"]
[Result "1-0"]
[TimeControl "1h30/40 - 30' + [30'']"]
[WhiteElo "2607"]
[BlackElo "2514"]

1. d4 {[%clk 01:29:31]} {[%emt 00:01:28]} Nf6 {[%clk 01:30:54]} {[%emt
00:00:06]} 2. c4 {[%clk 01:29:56]} {[%emt 00:00:06]} c6 {[%clk 01:31:19]}
{[%emt 00:00:04]} 3. Bf4 {[%clk 01:29:39]} {[%emt 00:00:48]} Qb6 {[%clk
01:27:10]} {[%emt 00:04:40]} 4. Qd2 {[%clk 01:30:07]} {[%emt 00:00:02]} d5
{[%clk 01:20:43]} {[%emt 00:06:56]} 5. Nc3 {[%clk 01:29:05]} {[%emt 00:01:33]}
Bf5 {[%clk 01:20:59]} {[%emt 00:00:14]} 6. f3 {[%clk 01:21:17]} {[%emt
00:08:18]} e6 {[%clk 01:21:05]} {[%emt 00:00:24]} 7. g4 {[%clk 01:18:59]}
{[%emt 00:02:48]} Bg6 {[%clk 01:21:29]} {[%emt 00:00:06]} 8. h4 {[%clk
01:19:27]} {[%emt 00:00:02]} h6 {[%clk 01:20:59]} {[%emt 00:01:00]} 9. e3
{[%clk 01:16:20]} {[%emt 00:03:38]} Nbd7 {[%clk 01:15:49]} {[%emt 00:05:40]} 10.
c5 {[%clk 00:53:26]} {[%emt 00:23:24]} Qd8 {[%clk 01:06:54]} {[%emt 00:09:25]}
11. Nh3 {[%clk 00:49:13]} {[%emt 00:04:43]} Ng8 {[%clk 00:55:59]} {[%emt
00:11:24]} 12. O-O-O {[%clk 00:42:27]} {[%emt 00:07:16]} Qa5 {[%clk 00:46:02]}
{[%emt 00:10:27]} 13. h5 {[%clk 00:40:05]} {[%emt 00:02:52]} Bh7 {[%clk
00:46:29]} {[%emt 00:00:03]} 14. g5 {[%clk 00:40:25]} {[%emt 00:00:11]} O-O-O
{[%clk 00:41:56]} {[%emt 00:05:02]} 15. Bh2 {[%clk 00:30:26]} {[%emt 00:10:29]}
Bf5 {[%clk 00:37:59]} {[%emt 00:04:27]} 16. g6 {[%clk 00:29:59]} {[%emt
00:00:58]} fxg6 {[%clk 00:37:45]} {[%emt 00:00:44]} 17. Nf4 {[%clk 00:24:19]}
{[%emt 00:06:10]} g5 {[%clk 00:32:19]} {[%emt 00:05:56]} 18. Ng6 {[%clk
00:23:18]} {[%emt 00:01:31]} Bxg6 {[%clk 00:28:07]} {[%emt 00:04:42]} 19. hxg6
{[%clk 00:23:46]} {[%emt 00:00:02]} b6 {[%clk 00:20:41]} {[%emt 00:07:56]} 20.
Nxd5 {[%clk 00:15:17]} {[%emt 00:08:59]} Qxd2+ {[%clk 00:20:07]} {[%emt
00:01:04]} 21. Rxd2 {[%clk 00:15:33]} {[%emt 00:00:15]} Nxc5 {[%clk 00:17:41]}
{[%emt 00:02:56]} 22. Nc7 {[%clk 00:15:37]} {[%emt 00:00:25]} Bd6 {[%clk
00:08:41]} {[%emt 00:09:31]} 23. Bxd6 {[%clk 00:14:42]} {[%emt 00:01:25]} Rxd6
{[%clk 00:09:06]} {[%emt 00:00:04]} 24. Ne8 {[%clk 00:15:09]} {[%emt 00:00:04]}
Nb7 {[%clk 00:09:28]} {[%emt 00:00:08]} 25. Nxd6+ {[%clk 00:12:18]} {[%emt
00:03:21]} Nxd6 {[%clk 00:09:56]} {[%emt 00:00:01]} 26. Bh3 {[%clk 00:12:20]}
{[%emt 00:00:28]} Kd7 {[%clk 00:09:21]} {[%emt 00:01:05]} 27. e4 {[%clk
00:03:38]} {[%emt 00:09:12]} Ne7 {[%clk 00:09:25]} {[%emt 00:00:26]} 28. d5
{[%clk 00:04:01]} {[%emt 00:00:08]} cxd5 {[%clk 00:09:43]} {[%emt 00:00:12]} 29.
exd5 {[%clk 00:04:28]} {[%emt 00:00:03]} Nxg6 {[%clk 00:09:56]} {[%emt
00:00:17]} 30. Rc2 {[%clk 00:03:05]} {[%emt 00:01:53]} Nf4 {[%clk 00:09:24]}
{[%emt 00:01:01]} 31. dxe6+ {[%clk 00:03:31]} {[%emt 00:00:05]} Ke7 {[%clk
00:09:47]} {[%emt 00:00:08]} 32. Rc7+ {[%clk 00:03:01]} {[%emt 00:01:00]} Kf6
{[%clk 00:10:15]} {[%emt 00:00:02]} 33. Rd7 {[%clk 00:02:17]} {[%emt 00:01:14]}
Nxh3 {[%clk 00:04:44]} {[%emt 00:06:02]} 34. Rxd6 {[%clk 00:02:44]} {[%emt
00:00:03]} Nf4 {[%clk 00:05:02]} {[%emt 00:00:11]} 35. Re1 {[%clk 00:02:29]}
{[%emt 00:00:45]} Re8 {[%clk 00:05:03]} {[%emt 00:00:29]} 36. e7+ {[%clk
00:02:36]} {[%emt 00:00:22]} Kf7 {[%clk 00:05:25]} {[%emt 00:00:08]} 37. Rd7
{[%clk 00:02:30]} {[%emt 00:00:36]} a5 {[%clk 00:05:54]} {[%emt 00:00:01]} 38.
Re5 {[%clk 00:01:51]} {[%emt 00:01:09]} Ng6 {[%clk 00:04:14]} {[%emt 00:02:10]}
39. Rb5 {[%clk 00:01:36]} {[%emt 00:00:45]} Nxe7 {[%clk 00:02:02]} {[%emt
00:02:42]} 40. Rxb6 {[%clk 00:02:01]} {[%emt 00:00:05]} h5 {[%clk 00:02:24]}
{[%emt 00:00:07]} 41. Kd2 {[%clk 00:00:37]} {[%emt 00:01:54]} h4 {[%clk
00:02:11]} {[%emt 00:00:43]} 42. Ke2 {[%clk 00:00:38]} {[%emt 00:00:29]} Rc8
{[%clk 00:01:02]} {[%emt 00:01:38]} 43. Rbb7 {[%clk 00:28:30]} {[%emt
00:02:39]} Re8 {[%clk 00:31:30]} {[%emt 00:00:01]} 44. Kf2 {[%clk 00:25:55]}
{[%emt 00:03:05]} Ke6 {[%clk 00:31:53]} {[%emt 00:00:07]} 45. Rd4 {[%clk
00:24:11]} {[%emt 00:02:15]} Ng6 {[%clk 00:32:18]} {[%emt 00:00:05]} 46. Rb5
{[%clk 00:21:57]} {[%emt 00:02:44]} Rc8 {[%clk 00:31:21]} {[%emt 00:01:27]} 47.
Rxg5 {[%clk 00:20:48]} {[%emt 00:01:39]} Rc2+ {[%clk 00:31:01]} {[%emt
00:00:51]} 48. Kg1 {[%clk 00:19:43]} {[%emt 00:01:34]} Kf6 {[%clk 00:31:13]}
{[%emt 00:00:17]} 49. Rg2 {[%clk 00:19:53]} {[%emt 00:00:21]} Rc1+ {[%clk
00:31:27]} {[%emt 00:00:16]} 50. Kh2 {[%clk 00:19:46]} {[%emt 00:00:37]} Ke5
{[%clk 00:31:13]} {[%emt 00:00:44]} 51. Ra4 {[%clk 00:15:58]} {[%emt 00:04:18]}
Nf4 {[%clk 00:31:41]} {[%emt 00:00:02]} 52. Rxa5+ {[%clk 00:16:20]} {[%emt
00:00:09]} Kf6 {[%clk 00:31:55]} {[%emt 00:00:16]} 53. Ra6+ {[%clk 00:15:40]}
{[%emt 00:01:11]} Kf5 {[%clk 00:32:14]} {[%emt 00:00:10]} 54. Ra5+ {[%clk
00:16:09]} {[%emt 00:00:02]} Kf6 {[%clk 00:32:38]} {[%emt 00:00:05]} 55. Rd2
{[%clk 00:14:07]} {[%emt 00:02:32]} g5 {[%clk 00:33:06]} {[%emt 00:00:02]} 56.
Ra6+ {[%clk 00:13:44]} {[%emt 00:00:53]} Kf5 {[%clk 00:33:33]} {[%emt
00:00:02]} 57. Ra5+ {[%clk 00:14:11]} {[%emt 00:00:03]} Kf6 {[%clk 00:33:58]}
{[%emt 00:00:05]} 58. Rb5 {[%clk 00:12:52]} {[%emt 00:01:50]} Rf1 {[%clk
00:32:08]} {[%emt 00:02:19]} 59. Rb3 {[%clk 00:12:58]} {[%emt 00:00:24]} Ng6
{[%clk 00:32:19]} {[%emt 00:00:19]} 60. Kg2 {[%clk 00:09:12]} {[%emt 00:04:17]}
Re1 {[%clk 00:32:42]} {[%emt 00:00:07]} 61. Rb6+ {[%clk 00:08:17]} {[%emt
00:01:25]} Kf5 {[%clk 00:33:01]} {[%emt 00:00:10]} 62. Rb5+ {[%clk 00:08:35]}
{[%emt 00:00:13]} Kf6 {[%clk 00:32:33]} {[%emt 00:00:57]} 63. Rd6+ {[%clk
00:08:45]} {[%emt 00:00:21]} Kf7 {[%clk 00:33:00]} {[%emt 00:00:02]} 64. Rf5+
{[%clk 00:09:09]} {[%emt 00:00:06]} 1-0

[Event "19th Rochefort Chess Festival - Masters"]
[Site "Rochefort, France"]
[Date "2020.02.24"]
[Round "4.2"]
[White "Duboue, Peio"]
[Black "Van Den Doel, Erik"]
[Result "0-1"]
[TimeControl "1h30/40 - 30' + [30'']"]
[WhiteElo "2421"]
[BlackElo "2583"]

1. e4 {[%clk 01:30:57]} {[%emt 00:00:02]} e6 {[%clk 01:30:54]} {[%emt
00:00:06]} 2. d4 {[%clk 01:31:22]} {[%emt 00:00:05]} d5 {[%clk 01:31:21]}
{[%emt 00:00:04]} 3. Nc3 {[%clk 01:31:47]} {[%emt 00:00:04]} Bb4 {[%clk
01:31:47]} {[%emt 00:00:04]} 4. exd5 {[%clk 01:32:12]} {[%emt 00:00:05]} exd5
{[%clk 01:32:14]} {[%emt 00:00:04]} 5. Bd3 {[%clk 01:32:36]} {[%emt 00:00:06]}
c6 {[%clk 01:32:40]} {[%emt 00:00:04]} 6. Nf3 {[%clk 01:28:44]} {[%emt
00:04:21]} Bg4 {[%clk 01:29:31]} {[%emt 00:03:40]} 7. h3 {[%clk 01:25:54]}
{[%emt 00:03:18]} Bh5 {[%clk 01:29:56]} {[%emt 00:00:06]} 8. O-O {[%clk
01:26:17]} {[%emt 00:00:07]} Ne7 {[%clk 01:30:02]} {[%emt 00:00:24]} 9. Re1
{[%clk 01:24:33]} {[%emt 00:02:14]} Nd7 {[%clk 01:23:59]} {[%emt 00:06:34]} 10.
Bf4 {[%clk 01:18:09]} {[%emt 00:06:53]} Nf8 {[%clk 01:20:39]} {[%emt 00:03:50]}
11. Bf1 {[%clk 00:49:46]} {[%emt 00:28:53]} Ne6 {[%clk 01:16:22]} {[%emt
00:04:47]} 12. Be5 {[%clk 00:46:06]} {[%emt 00:04:09]} O-O {[%clk 01:14:46]}
{[%emt 00:02:07]} 13. g4 {[%clk 00:45:03]} {[%emt 00:01:34]} Bg6 {[%clk
01:11:27]} {[%emt 00:03:49]} 14. Bg3 {[%clk 00:43:48]} {[%emt 00:01:44]} Be4
{[%clk 00:59:59]} {[%emt 00:11:59]} 15. Nd2 {[%clk 00:36:15]} {[%emt 00:08:03]}
f5 {[%clk 00:50:13]} {[%emt 00:10:16]} 16. f3 {[%clk 00:33:14]} {[%emt
00:03:31]} Nxd4 {[%clk 00:49:08]} {[%emt 00:01:35]} 17. fxe4 {[%clk 00:32:34]}
{[%emt 00:01:09]} fxe4 {[%clk 00:49:16]} {[%emt 00:00:22]} 18. Bg2 {[%clk
00:31:11]} {[%emt 00:01:53]} Ng6 {[%clk 00:29:21]} {[%emt 00:20:26]} 19. Rf1
{[%clk 00:23:36]} {[%emt 00:08:04]} Bd6 {[%clk 00:20:51]} {[%emt 00:09:00]} 20.
Rxf8+ {[%clk 00:23:02]} {[%emt 00:01:04]} Qxf8 {[%clk 00:21:13]} {[%emt
00:00:07]} 21. Nf1 {[%clk 00:20:44]} {[%emt 00:02:49]} Bxg3 {[%clk 00:15:54]}
{[%emt 00:05:49]} 22. Nxg3 {[%clk 00:21:11]} {[%emt 00:00:03]} Qc5 {[%clk
00:15:51]} {[%emt 00:00:33]} 23. Kh1 {[%clk 00:20:04]} {[%emt 00:01:36]} Rf8
{[%clk 00:15:27]} {[%emt 00:00:54]} 24. Qg1 {[%clk 00:18:16]} {[%emt 00:02:18]}
Qd6 {[%clk 00:13:07]} {[%emt 00:02:51]} 25. Qxd4 {[%clk 00:18:02]} {[%emt
00:00:44]} Qxg3 {[%clk 00:13:31]} {[%emt 00:00:05]} 26. Ne2 {[%clk 00:17:35]}
{[%emt 00:00:58]} Qf2 {[%clk 00:11:45]} {[%emt 00:02:15]} 27. Qxf2 {[%clk
00:12:09]} {[%emt 00:05:56]} Rxf2 {[%clk 00:12:11]} {[%emt 00:00:05]} 28. Bf1
{[%clk 00:06:45]} {[%emt 00:05:54]} Nh4 {[%clk 00:11:26]} {[%emt 00:01:15]} 29.
Nd4 {[%clk 00:06:43]} {[%emt 00:00:31]} c5 {[%clk 00:06:43]} {[%emt 00:05:14]}
30. Nf5 {[%clk 00:04:52]} {[%emt 00:02:21]} Nxf5 {[%clk 00:06:47]} {[%emt
00:00:26]} 31. gxf5 {[%clk 00:05:19]} {[%emt 00:00:04]} Rxc2 {[%clk 00:07:00]}
{[%emt 00:00:17]} 32. b4 {[%clk 00:01:47]} {[%emt 00:04:02]} c4 {[%clk
00:06:26]} {[%emt 00:01:04]} 33. Rd1 {[%clk 00:01:59]} {[%emt 00:00:18]} e3
{[%clk 00:04:31]} {[%emt 00:02:25]} 34. Rxd5 {[%clk 00:02:07]} {[%emt
00:00:22]} e2 {[%clk 00:04:37]} {[%emt 00:00:24]} 35. Bxe2 {[%clk 00:02:33]}
{[%emt 00:00:04]} Rxe2 {[%clk 00:05:04]} {[%emt 00:00:04]} 36. Rc5 {[%clk
00:02:31]} {[%emt 00:00:31]} b5 {[%clk 00:04:50]} {[%emt 00:00:43]} 37. a3
{[%clk 00:02:27]} {[%emt 00:00:34]} a6 {[%clk 00:04:54]} {[%emt 00:00:26]} 38.
Kg1 {[%clk 00:02:46]} {[%emt 00:00:11]} Ra2 {[%clk 00:04:20]} {[%emt 00:01:04]}
39. Rc8+ {[%clk 00:02:30]} {[%emt 00:00:45]} Kf7 {[%clk 00:04:46]} {[%emt
00:00:04]} 40. Rc7+ {[%clk 00:02:57]} {[%emt 00:00:03]} Kf6 {[%clk 00:05:06]}
{[%emt 00:00:10]} 41. Rc6+ {[%clk 00:03:23]} {[%emt 00:00:04]} Kxf5 {[%clk
00:05:31]} {[%emt 00:00:04]} 42. Rxa6 {[%clk 00:03:50]} {[%emt 00:00:04]} c3
{[%clk 00:05:53]} {[%emt 00:00:08]} 0-1

[Event "19th Rochefort Chess Festival - Masters"]
[Site "Rochefort, France"]
[Date "2020.02.24"]
[Round "4.3"]
[White "Vorobiov, Evgeny E."]
[Black "Jolly, Jean-Francois"]
[Result "1/2-1/2"]
[TimeControl "1h30/40 - 30' + [30'']"]
[WhiteElo "2520"]
[BlackElo "2386"]

1. c4 {[%clk 01:30:57]} {[%emt 00:00:02]} Nf6 {[%clk 01:26:04]} {[%emt
00:04:56]} 2. Nc3 {[%clk 01:31:21]} {[%emt 00:00:07]} e5 {[%clk 01:24:40]}
{[%emt 00:01:54]} 3. Nf3 {[%clk 01:31:40]} {[%emt 00:00:11]} Nc6 {[%clk
01:25:01]} {[%emt 00:00:09]} 4. e3 {[%clk 01:32:00]} {[%emt 00:00:09]} Be7
{[%clk 01:16:17]} {[%emt 00:09:15]} 5. Qb3 {[%clk 01:30:58]} {[%emt 00:01:32]}
O-O {[%clk 01:15:51]} {[%emt 00:00:55]} 6. Be2 {[%clk 01:31:24]} {[%emt
00:00:04]} d6 {[%clk 01:06:37]} {[%emt 00:09:44]} 7. O-O {[%clk 01:28:52]}
{[%emt 00:03:02]} Nd7 {[%clk 01:05:36]} {[%emt 00:01:32]} 8. Qc2 {[%clk
01:13:42]} {[%emt 00:15:40]} Nb6 {[%clk 01:00:19]} {[%emt 00:05:47]} 9. a3
{[%clk 01:10:12]} {[%emt 00:04:00]} Be6 {[%clk 00:59:21]} {[%emt 00:01:28]} 10.
d3 {[%clk 01:09:34]} {[%emt 00:01:08]} f5 {[%clk 00:53:11]} {[%emt 00:06:39]}
11. b4 {[%clk 01:07:19]} {[%emt 00:02:45]} Bf6 {[%clk 00:53:26]} {[%emt
00:00:16]} 12. Bb2 {[%clk 01:06:05]} {[%emt 00:01:44]} Kh8 {[%clk 00:53:13]}
{[%emt 00:00:43]} 13. Nd2 {[%clk 01:03:41]} {[%emt 00:02:53]} g5 {[%clk
00:50:21]} {[%emt 00:03:23]} 14. Rac1 {[%clk 00:54:44]} {[%emt 00:09:27]} g4
{[%clk 00:44:30]} {[%emt 00:06:21]} 15. Rfe1 {[%clk 00:50:50]} {[%emt
00:04:24]} Bg7 {[%clk 00:43:30]} {[%emt 00:01:31]} 16. Bf1 {[%clk 00:46:48]}
{[%emt 00:04:32]} Qg5 {[%clk 00:36:18]} {[%emt 00:07:42]} 17. Nb5 {[%clk
00:43:23]} {[%emt 00:03:54]} Rac8 {[%clk 00:22:53]} {[%emt 00:13:55]} 18. d4
{[%clk 00:42:18]} {[%emt 00:01:36]} a6 {[%clk 00:22:55]} {[%emt 00:00:28]} 19.
d5 {[%clk 00:41:50]} {[%emt 00:00:58]} axb5 {[%clk 00:23:19]} {[%emt 00:00:06]}
20. dxe6 {[%clk 00:41:38]} {[%emt 00:00:42]} bxc4 {[%clk 00:22:25]} {[%emt
00:01:24]} 21. Nxc4 {[%clk 00:41:44]} {[%emt 00:00:24]} Nd5 {[%clk 00:19:59]}
{[%emt 00:02:57]} 22. b5 {[%clk 00:36:55]} {[%emt 00:05:19]} Nce7 {[%clk
00:20:18]} {[%emt 00:00:10]} 23. b6 {[%clk 00:37:10]} {[%emt 00:00:16]} cxb6
{[%clk 00:15:17]} {[%emt 00:05:31]} 24. Qb3 {[%clk 00:31:12]} {[%emt 00:06:28]}
Rc6 {[%clk 00:15:32]} {[%emt 00:00:16]} 25. Rcd1 {[%clk 00:31:18]} {[%emt
00:00:23]} Qf6 {[%clk 00:14:29]} {[%emt 00:01:33]} 26. Rd2 {[%clk 00:26:27]}
{[%emt 00:05:21]} Qxe6 {[%clk 00:13:19]} {[%emt 00:01:40]} 27. Red1 {[%clk
00:26:21]} {[%emt 00:00:36]} Rd8 {[%clk 00:11:41]} {[%emt 00:02:08]} 28. a4
{[%clk 00:21:15]} {[%emt 00:05:36]} Nc7 {[%clk 00:08:39]} {[%emt 00:03:32]} 29.
Ba3 {[%clk 00:18:46]} {[%emt 00:02:59]} d5 {[%clk 00:08:03]} {[%emt 00:01:06]}
30. a5 {[%clk 00:13:37]} {[%emt 00:05:39]} Ra8 {[%clk 00:04:15]} {[%emt
00:04:18]} 31. Bxe7 {[%clk 00:11:11]} {[%emt 00:02:56]} Qxe7 {[%clk 00:03:08]}
{[%emt 00:01:38]} 32. Nxb6 {[%clk 00:11:13]} {[%emt 00:00:28]} Rxa5 {[%clk
00:03:21]} {[%emt 00:00:17]} 33. Nxd5 {[%clk 00:10:44]} {[%emt 00:00:58]} Nxd5
{[%clk 00:03:39]} {[%emt 00:00:12]} 34. Rxd5 {[%clk 00:11:09]} {[%emt
00:00:06]} Rxd5 {[%clk 00:03:54]} {[%emt 00:00:15]} 35. Qxd5 {[%clk 00:10:46]}
{[%emt 00:00:52]} Rc8 {[%clk 00:03:20]} {[%emt 00:01:03]} 36. g3 {[%clk
00:09:28]} {[%emt 00:01:48]} Bf6 {[%clk 00:02:44]} {[%emt 00:01:06]} 37. Rb1
{[%clk 00:03:31]} {[%emt 00:06:27]} Rc7 {[%clk 00:02:11]} {[%emt 00:01:03]} 38.
Bc4 {[%clk 00:01:45]} {[%emt 00:02:16]} Qd8 {[%clk 00:02:11]} {[%emt 00:00:31]}
39. Qe6 {[%clk 00:01:24]} {[%emt 00:00:51]} Rc6 {[%clk 00:02:18]} {[%emt
00:00:23]} 40. Qf7 {[%clk 00:01:11]} {[%emt 00:00:43]} Rc7 {[%clk 00:02:42]}
{[%emt 00:00:07]} 41. Qe6 {[%clk 00:00:50]} {[%emt 00:00:50]} Rc6 {[%clk
00:30:04]} {[%emt 00:03:09]} 42. Qf7 {[%clk 00:27:49]} {[%emt 00:03:31]} Rc7
{[%clk 00:30:23]} {[%emt 00:00:12]} 1/2-1/2